Cogmind - Beta 10.2 @@@ ROGUE MODE // 2021.10.15 @ 21:15:00 Player: epb Result: Destroyed by H-55 Commando with Assault Rifle Performance ------------- Evolutions (2) 1000 Regions Visited (4) 800 Robots Destroyed (22) 110 Value Destroyed (549) 549 Prototype IDs (0) 0 Alien Tech Used (0) 0 Bonus (0) 0 TOTAL SCORE: 2459 Bonus ------- None Cogmind --------- Core Integrity 0/550 Matter 51/300 Energy 100/100 System Corruption 0% Temperature Cool (0) Movement Core (300) Ox5 Location -8/Materials Parts ------- > --- POWER (1) -------- (None) > --- PROPULSION (2) --- (None) > --- UTILITY (2) ------ Large Storage Unit > --- WEAPON (6) ------- (None) > --- INVENTORY (10) --- Improved Aluminum Leg Small Storage Unit Particle Cannon Peak State ------------ > --- POWER ------------ (None) > --- PROPULSION ------- Aluminum Leg Carbon-fiber Leg > --- UTILITY ---------- Large Storage Unit Hacking Suite > --- WEAPON ----------- Pulse Rifle Particle Cannon Particle Cannon Particle Cannon Particle Cannon > --- INVENTORY -------- Small Storage Unit [Rating: 19] Favorites ----------- Power Ion Engine Engine Ion Engine Power Core Light Nuclear Core Propulsion Aluminum Leg Leg Aluminum Leg Wheel Wheel Flight Unit VTOL Module Utility Small Storage Unit Device Heat Sink Storage Small Storage Unit Hackware Hacking Suite Protection Hardened Light Armor Plating Weapon Mini Grenade Launcher Energy Gun Spread Laser Energy Cannon Particle Cannon Ballistic Gun Light Assault Rifle Launcher Mini Grenade Launcher Impact Weapon Flail Build | -11 -10 -9 -9 -8 ------- Run | Scr Mat Mat Min Mat Slots Evolved 4 | . . 2 . 2 Power . | . . . . . Propulsion . | . . . . . Utility . | . . . . . Weapon 4 | . . 2 . 2 Parts Attached 43 | 6 5 12 . 20 Power 4 | 1 1 1 . 1 Engine 3 | 1 . 1 . 1 Core 1 | . 1 . . . Reactor . | . . . . . Propulsion 11 | 2 2 4 . 3 Treads . | . . . . . Leg 5 | 2 . 1 . 2 Wheel 1 | . . . . 1 Hover . | . . . . . Flight 5 | . 2 3 . . Utility 10 | 1 1 3 . 5 Device 1 | . 1 . . . Storage 6 | 1 . 1 . 4 Processor . | . . . . . Hackware 1 | . . . . 1 Protection 2 | . . 2 . . Artifact . | . . . . . Weapon 18 | 2 1 4 . 11 Energy Gun 6 | 1 1 3 . 1 Energy Cannon 5 | . . 1 . 4 Ballistic Gun 1 | 1 . . . . Ballistic Cannon . | . . . . . Launcher 5 | . . . . 5 Special Weapon . | . . . . . Impact Weapon 1 | . . . . 1 Slashing Weapon . | . . . . . Piercing Weapon . | . . . . . Special Melee Weapon . | . . . . . Unidentified Prototypes . | . . . . . Parts Lost 32 | . 7 10 . 15 Power 3 | . 1 1 . 1 Propulsion 9 | . 2 4 . 3 Utility 3 | . 1 1 . 1 Weapon 17 | . 3 4 . 10 Highest Loss Streak 8 | . 6 8 . 7 Average Slot Usage (%) 55 | . 89 52 . 42 Engine 4 | . 12 4 . . Leg 7 | . 26 . . 2 Flight 5 | . 1 16 . . Device 1 | . 8 . . . Storage 8 | . 13 4 . 8 Hackware 1 | . . . . 2 Protection 2 | . . 7 . . Energy Gun 9 | . 13 18 . 2 Energy Cannon 1 | . . 1 . 1 Ballistic Gun 2 | . 12 . . . Launcher 10 | . . . . 22 Naked Turns 43 | . . 18 15 10 Heaviest Build 35 | 12 13 18 . 35 Greatest Support 25 | 20 20 10 3 25 Greatest Overweight (x) 7 | . 2 2 . 7 Average Overweight (x) . | . . . . 2 Largest Inventory Capacity 12 | 6 6 6 4 12 Average Capacity 7 | 4 5 4 4 9 Most Carried 5 | 4 3 4 2 5 Average Carried 1 | 1 1 2 2 2 Final Capacity 10 | 6 4 4 4 10 Final Carried 3 | 1 1 2 2 3 Class Distribution -------------------- 72% | Mutant 17% | Executioner 4% | Gunner 4% | Tank Dominant Class ---------------- Mutant | -10/Materials Mutant | -9/Materials Mutant | -9/Mines Mutant | -8/Materials Resources | -11 -10 -9 -9 -8 ----------- Run | Scr Mat Mat Min Mat Matter Collected 399 | 30 61 277 . 31 Remotely . | . . . . . Salvage Created 774 | . 121 490 . 163 Parts 43 | . 5 26 . 12 Haulers Intercepted . | . . . . . Recyclers Shooed 1 | . . 1 . . Parts Field Recycled . | . . . . . Retrieved Matter . | . . . . . Parts Self-Destructed . | . . . . . Prevented . | . . . . . Kills | -11 -10 -9 -9 -8 ------- Run | Scr Mat Mat Min Mat Combat Hostiles Destroyed 14 | . 2 8 . 4 Guns 3 | . 1 2 . . Cannons 6 | . . 5 . 1 AOE 3 | . . . . 3 Classes Destroyed 8 | . 2 3 . 3 Worker 1 | . . . . 1 Builder 3 | . . . . 3 Recycler 3 | . . 3 . . Watcher 1 | . 1 . . . Swarmer 3 | . . 3 . . Grunt 7 | . 2 3 . 2 Duelist 1 | . . . . 1 Sentry 3 | . . 2 . 1 Best Kill Streak 6 | . 1 6 . 3 Combat Bots Only 6 | . 1 6 . 3 Max Kills in Single Turn 2 | . 1 1 . 2 Gunslinging . | . . . . . Exploded 1 | . . . . 1 Melee . | . . . . . Uniques/NPCs Destroyed . | . . . . . Combat | -11 -10 -9 -9 -8 -------- Run | Scr Mat Mat Min Mat Damage Taken 3160 | . 685 842 80 1553 Core 1082 | . 222 220 80 560 Absorbed by Shields . | . . . . . Core Remaining (%) 45 | 100 11 . 25 . Volleys Fired 63 | . 22 26 . 15 Largest 5 | . 2 3 . 5 Hottest 204 | . 70 195 . 204 Shots Fired 108 | . 43 39 . 26 Gun 69 | . 43 25 . 1 Cannon 23 | . . 14 . 9 Launcher 16 | . . . . 16 Special . | . . . . . Kinetic 22 | . 22 . . . Thermal 37 | . 2 25 . 10 Explosive 16 | . . . . 16 Electromagnetic 33 | . 19 14 . . Robot Hit Streak 18 | . 11 18 . 12 Robot Miss Streak 4 | . 3 4 . 3 Penetration Max . | . . . . . Secondary Targets . | . . . . . Shots Hit Robots 82 | . 32 32 . 18 Core Hits 51 | . 5 33 . 13 Critical Hits 1 | . 1 . . . Critical Kills 1 | . 1 . . . Critical Parts Destroyed . | . . . . . Melee Attacks 3 | . . . . 3 Impact 3 | . . . . 3 Slashing . | . . . . . Piercing . | . . . . . Sneak Attacks 1 | . . . . 1 Combat Hostiles . | . . . . . Follow-up Attacks . | . . . . . Damage Inflicted 1640 | . 283 410 . 947 Guns 485 | . 283 202 . . Cannons 362 | . . 197 . 165 Explosions 619 | . . . . 619 Melee 151 | . . . . 151 Ramming 23 | . . 11 . 12 Kinetic 105 | . 105 . . . Thermal 379 | . 12 202 . 165 Explosive 619 | . . . . 619 Electromagnetic 363 | . 166 197 . . Impact 151 | . . . . 151 Slashing . | . . . . . Piercing . | . . . . . Highest Corruption . | . . . . . Average Corruption . | . . . . . Corruption Purged . | . . . . . Overload Shots . | . . . . . Overflow Damage 70 | . . . . 70 Projectiles . | . . . . . Explosions 17 | . . . . 17 Melee 53 | . . . . 53 Knockbacks 3 | . . . . 3 Impact 3 | . . . . 3 Kinetic . | . . . . . Secondary . | . . . . . Self-Inflicted Damage 48 | . . 4 . 44 Shots 3 | . . . . 3 Rammed 9 | . . 4 . 5 Targets Rammed 9 | . . 4 . 5 Kicked . | . . . . . Crushed . | . . . . . Highest Temperature 282 | . 20 282 . 255 Average Temperature 71 | . 8 74 . 113 Received Heat Transfer 924 | . 318 213 42 351 Effects 1 | . . . . 1 Energy Bleed 1 | . . . . 1 Siege Activations . | . . . . . Robots Corrupted 2 | . 1 1 . . Combat Hostiles 2 | . 1 1 . . Parts Fried 6 | . 1 4 . 1 Impact Corruptions 2 | . . . . 2 Robots Melted . | . . . . . Combat Hostiles . | . . . . . Parts Melted 1 | . . . . 1 Heat Transferred 593 | . 37 260 . 296 Parts Sabotaged . | . . . . . Parts Stolen . | . . . . . Parts Stripped . | . . . . . Power Chain Reactions . | . . . . . Missiles Intercepted . | . . . . . Alert | -11 -10 -9 -9 -8 ------- Run | Scr Mat Mat Min Mat Peak Influence 199 | . 102 199 69 105 Initial 69 | . . 19 69 26 Average 58 | . 48 89 69 48 Maximum Alert Level . | . . . . . Low Security (%) 100 | 100 100 100 100 100 Level 1 . | . . . . . Level 2 . | . . . . . Level 3 . | . . . . . Level 4 . | . . . . . Level 5 . | . . . . . High Security . | . . . . . Max Security . | . . . . . Squads Dispatched 2 | . 1 1 . . Investigation 1 | . 1 . . . Extermination . | . . . . . Reinforcement 1 | . . 1 . . Assault . | . . . . . Garrison . | . . . . . Intercept . | . . . . . Construction Impeded . | . . . . . Haulers Reinforced . | . . . . . Stealth | -11 -10 -9 -9 -8 --------- Run | Scr Mat Mat Min Mat Distress Signals 1 | . . 1 . . Communications Jammed . | . . . . . Distress Signals . | . . . . . Times Spotted 38 | . 13 15 5 5 Peak Tracking Total 9 | . 9 7 5 4 Tactical Retreats 1 | . 1 . . . Traps | -11 -10 -9 -9 -8 ------- Run | Scr Mat Mat Min Mat Traps Triggered . | . . . . . Indirectly . | . . . . . Trap Hack Attempts . | . . . . . Triggered . | . . . . . Disarmed . | . . . . . Reprogrammed . | . . . . . Reused . | . . . . . Traps Extracted . | . . . . . Installed . | . . . . . Triggered 1 | . 1 . . . Machines | -11 -10 -9 -9 -8 ---------- Run | Scr Mat Mat Min Mat Machines Disabled 1 | . 1 . . . Max in Single Turn 1 | . 1 . . . Machines Sabotaged . | . . . . . Garrisons Compromised . | . . . . . Overloaded Fab Kills . | . . . . . Fab Network Shutdowns . | . . . . . Hacking | -11 -10 -9 -9 -8 --------- Run | Scr Mat Mat Min Mat Machines Accessed . | . . . . . Terminals . | . . . . . Fabricators . | . . . . . Repair Stations . | . . . . . Recycling Units . | . . . . . Scanalyzers . | . . . . . Garrison Access . | . . . . . Total Hacks . | . . . . . Successful . | . . . . . Failed . | . . . . . Catastrophic . | . . . . . Database Lockouts . | . . . . . Manual . | . . . . . Terminals . | . . . . . Fabricators . | . . . . . Repair Stations . | . . . . . Recycling Units . | . . . . . Scanalyzers . | . . . . . Garrison Access . | . . . . . Terminal Hacks . | . . . . . Fabricator Hacks . | . . . . . Repair Station Hacks . | . . . . . Recycling Unit Hacks . | . . . . . Scanalyzer . | . . . . . Garrison Access Hacks . | . . . . . Unauthorized Hacks . | . . . . . Terminals . | . . . . . Fabricators . | . . . . . Repair Stations . | . . . . . Recycling Units . | . . . . . Scanalyzers . | . . . . . Garrison Access . | . . . . . Data Cores Recovered . | . . . . . Used . | . . . . . Hacking Detections . | . . . . . Full Trace Events . | . . . . . Feedback Events . | . . . . . Feedback Blocked . | . . . . . Robot Schematics Acquired . | . . . . . Robots Built . | . . . . . Matter . | . . . . . Time . | . . . . . Total Robot Build Rating . | . . . . . Part Schematics Acquired . | . . . . . Parts Built . | . . . . . Matter . | . . . . . Time . | . . . . . Total Part Build Rating . | . . . . . Parts Repaired . | . . . . . Time . | . . . . . Parts Recycled . | . . . . . Recycled Matter . | . . . . . Retrieved Matter . | . . . . . Retrieved Components . | . . . . . Parts Scanalyzed . | . . . . . Part Schematics Acquired . | . . . . . Parts Damaged . | . . . . . Bothacking | -11 -10 -9 -9 -8 ------------ Run | Scr Mat Mat Min Mat Used RIF Installer . | . . . . . Robots Hacked . | . . . . . Non-combat . | . . . . . Combat . | . . . . . Robot Hacks Applied . | . . . . . Relay Couplers Released . | . . . . . Robots Rewired . | . . . . . Allies Hacked . | . . . . . Hacks Repelled . | . . . . . Allies | -11 -10 -9 -9 -8 -------- Run | Scr Mat Mat Min Mat Total Allies . | . . . . . Largest Group . | . . . . . Highest-Rated Group . | . . . . . Highest-Rated Ally . | . . . . . Total Orders . | . . . . . Ally Attacks . | . . . . . Total Damage . | . . . . . Kills . | . . . . . Allies Corrupted . | . . . . . Allies Melted . | . . . . . Intel | -11 -10 -9 -9 -8 ------- Run | Scr Mat Mat Min Mat Robot Analysis Total . | . . . . . Derelict Logs Recovered . | . . . . . Drone Launches . | . . . . . Drone Recoveries . | . . . . . Exploration | -11 -10 -9 -9 -8 ------------- Run | Scr Mat Mat Min Mat Turns Passed 1251 | 65 257 366 15 548 Spaces Moved 689 | 51 152 220 30 236 Core 210 | 12 . 48 30 120 Treads . | . . . . . Legs 261 | 39 135 . . 87 Wheels 29 | . . . . 29 Hover . | . . . . . Flight 189 | . 17 172 . . Fastest Speed 37 | 50 40 37 50 50 Average Speed 119 | 103 112 71 50 182 Slowest Speed 400 | 120 200 200 50 400 Overloaded Moves . | . . . . . Propulsion Burnouts . | . . . . . Robots Hopped . | . . . . . Cave-ins Triggered . | . . . . . Exploration Rate (%) 15 | 4 29 22 8 14 Regions Visited 4 Branch Regions 1 Pre-discovered Areas . | . . . . . Known Exits Taken . | . . . . . Unknown Exits Taken 4 | 1 1 1 1 . Scrap Searched . | . . . . . Spaces Dug . | . . . . . Terrain Destroyed 87 | . . . . 87 Melee . | . . . . . Projectile . | . . . . . AOE 87 | . . . . 87 Terrain Rammed . | . . . . . Walls Destroyed . | . . . . . Machines Disabled . | . . . . . Actions | -11 -10 -9 -9 -8 --------- Run | Scr Mat Mat Min Mat Total 1005 | 63 198 393 29 322 Wait 156 | . 14 119 . 23 Move 685 | 50 151 219 29 236 Hop . | . . . . . Pick Up 38 | 7 4 10 . 17 Fast Attach . | . . . . . Attach 41 | 6 4 12 . 19 Detach 6 | . . 3 . 3 Swap 2 | . 1 . . 1 Drop 2 | . 2 . . . Fire 63 | . 22 26 . 15 Melee 3 | . . . . 3 Ram 9 | . . 4 . 5 Kick . | . . . . . Crush . | . . . . . Escape Stasis . | . . . . . Rewire . | . . . . . Trap . | . . . . . Miscellaneous . | . . . . . Route ------- -11/Scrapyard -10/Materials -9/Materials -9/Mines -8/Materials (discovered 1 exit: [*Sto]) History --------- Turn | Location | Event 2 | -11/Scrapyard | Met Revision 17 4 | -11/Scrapyard | Discovered new exit (range 16) 66 | -11/Scrapyard | Entered Materials 172 | -10/Materials | Discovered new exit (range 10) 314 | -10/Materials | Core integrity fell below 50% 318 | -10/Materials | Core integrity fell below 20% 323 | -10/Materials | Entered another Materials area 323 | -9/Materials | Evolved 2 slots: Weapon x2 338 | -9/Materials | Build established: Mutant 347 | -9/Materials | Lost 6 parts (1p2n1u2w) 672 | -9/Materials | Discovered new exit (range 15) 683 | -9/Materials | Core integrity fell below 50% 687 | -9/Materials | Lost 8 parts (1p3n1u3w) 689 | -9/Materials | Entered Mines 697 | -9/Mines | Discovered new exit (range 8) 704 | -9/Mines | Entered Materials 704 | -8/Materials | Evolved 2 slots: Weapon x2 934 | -8/Materials | Core integrity fell below 50% 957 | -8/Materials | Lost 7 parts (2n1u4w) 1155 | -8/Materials | Discovered new exit (range 11) 1205 | -8/Materials | Core integrity fell below 20% 1252 | -8/Materials | Destroyed by H-55 Commando with Assault Rifle Last Messages --------------- K-01 Serf system corrupted by crushing effect. K-01 Serf system terminally corrupted. Sml. Matter Pod fried. Mni. Grenade Launcher destroyed. Penetrated by Slug. Mni. Grenade Launcher destroyed. H-55 Commando knocked back. Slug penetrates Wall. Penetrated by Slug. Flail destroyed. Penetrated by Slug. Slammed into H-55 Commando. Mni. Grenade Launcher destroyed. U-05 Engineer builds a Door. Slammed into H-55 Commando. Penetrated by Slug. Mni. Grenade Launcher destroyed. U-05 Engineer builds a Door. Slammed into H-55 Commando. Penetrated by Slug. Map ----- +----------------------------------------------------+ | ?????????????????????????????????????????????????? | | ?????????????????????????????????????????????????? | | ?????????????????????????????????????????????????? | | ?????????????????????????????????????????????????? | | ?????????????????????????????????????????????????? | | ?????????????????????????????????????????????????? | | ?????????????????????????????????????????????????? | | ?????????????????????????????????????????????????? | | ?????????????????????????????????????????????????? | | ?????????????????????????????????????????????????? | | ?????????????????????????????????????????????????? | | ??????????????????? ?????????????????????????????? | | ?????????????????? ???????????????????????????? | | ?????????????????? ?"??????????????????????????? | | ?????????????????? "?" ???????????????????????? | | ????####+#####???# ? ????????????????????????? | | ???? ### ?????????????????????????? | | ????? # # #+##??????????????????????? | | ??????? # # ###????????????????????? | | ???????? = ?????????????????????? | | ????????? < ???????????????????????? | | ?????????? ?????????????????????????? | | ??????????? * #########????????????????????? | | ????######### # ! ] #????????????????????? | | ????# # #????????????????????? | | ????# ## @h ##???????????????????? | | ????# # # ### ##########???????????? | | ????# # ##### # ######??????? | | ????# ## ##?## # / # #??????? | | ????# # #######+### # #?????## | | ????# + % # / # #?????# | | ????# # + # ####### | | ????# # ######### # # # # | | ????########### ###### #+# ! # # # | | ??????????????# # # # + + | | ??????????????+ + """ # # # # | | ??????????????# # """"" ########## # # | | ??????????????# # """"" #????########### ## | | ??????????????+ # """"" #????# | # ### | | ??????????????# #! """ #????# # #?? | | ??????????????# # #????# """ + #?? | | ??????????????# ########+###????# """"" # #?? | | ??????????????# ######## ######## """"" # #?? | | ???????????# ^ + """"" # #?? | | ?????????? ####### """ #####?? | | ?????????????###############?????# #?????? | | ?????????????????????????????????###########?????? | | ?????????????????????????????????????????????????? | | ?????????????????????????????????????????????????? | | ?????????????????????????????????????????????????? | +----------------------------------------------------+ Best States ------------- Heat Dissipation 35 Energy Generation 10 Energy Capacity 250 Matter Stores 300 Matter Capacity 300 Sight Range 16 Terrain Scan Density 10 Armor Coverage 150 Evasion (%) 62 Offensive Hacking 10 Item Schematics ----------------- None Robot Schematics ------------------ None Fabricated ------------ Nothing Alien Tech Used ----------------- None Achievements -------------- Oops Power Corrupts Challenges ------------ None Game ------ Seed MetafieldWeightShielding Manual? 0 Play Time 00:14:24 Cumulative 5.5 hours Start 2021.10.15 @ 21:01:15 End 2021.10.15 @ 21:15:00 Sessions 1 Manual Loads 0 Difficulty Rogue Special Mode None Game No. 17 Rogue 17 Adventurer 0 Explorer 0 Win Type - Total 0 Types 0/0/0/0/0/0/0/0/0 Lore% 7 Gallery% 12 Achievement% 10 Wizard Run 0 Options --------- ASCII 0 Keyboard 0 Movement Arrows Keybinds 0 Fullscreen 1 Font 18/SmallcapsGlow Map View 76x50 Tactical HUD 0 Map Filters NONE Filters NONE Steam 1 RUN: 2bce127a-d9be-4699-bc77-75b6ea62838f